bitfinex/quotes_ETHUSD_20251006
["timestamp","ask_amount","ask_price","bid_price","bid_amount"]
[1759765112160,9.842,4674.7,4674.6,19.49234878]
[1759765112360,9.842,4674.7,4674.6,19.11084578]
[1759765113265,9.842,4674.7,4674.6,19.13246078]
[1759765113462,11.072,4674.7,4674.6,19.13246078]
[1759765114281,11.072,4674.7,4674.6,19.13267578]
[1759765114965,12.302,4674.7,4674.6,19.13267578]
[1759765115407,12.302,4674.7,4674.6,21.73110878]
[1759765116180,13.532,4674.7,4674.6,14.384328]
[1759765116364,13.9835,4674.7,4674.6,17.62678946]
[1759765116907,13.9835,4674.7,4674.6,13.061569]
[1759765117068,13.9835,4674.7,4674.6,15.380369]
[1759765117268,13.532,4674.7,4674.6,22.93403646]
[1759765117566,14.762,4674.7,4674.6,26.03433246]
[1759765117762,14.762,4674.7,4674.6,25.20806846]
[1759765117763,14.2979849,4674.7,4674.6,25.20806846]
[1759765117985,14.7494849,4674.7,4674.6,17.83484346]
[1759765118267,14.7494849,4674.7,4674.6,18.62780946]
[1759765118467,14.7494849,4674.7,4674.6,15.98859146]
[1759765119110,15.9794849,4674.7,4674.6,11.423371]
[1759765119272,15.9794849,4674.7,4674.6,16.44372]
[1759765119599,15.9794849,4674.7,4674.6,18.58294046]
[1759765120299,15.9794849,4674.7,4674.6,18.99747146]
[1759765120469,17.2094849,4674.7,4674.6,18.99747146]
[1759765120669,17.2094849,4674.7,4674.6,15.558028]
[1759765121301,17.2094849,4674.7,4674.6,16.747178]
[1759765121502,17.2094849,4674.7,4674.6,13.153428]
[1759765121704,19.30063339,4674.7,4673.9,0.1072]
[1759765121907,2.24664201,4674.2,4673.1,2.13986987]
[1759765122115,20.53063339,4674.7,4673.1,0.1072]
[1759765122116,0.4515,4674.1,4673.1,0.1072]
[1759765122314,0.1072,4673.7,4673.2,2.425]
[1759765122613,2.13978027,4673.4,4673.3,2.425]
[1759765122780,0.4515,4673.4,4673.3,2.425]
[1759765123614,1.6815,4673.4,4673.3,2.425]
[1759765123825,1.6815,4673.4,4672.7,0.00099968]
[1759765124129,2.14004451,4672.8,4672.7,0.00099968]
[1759765124312,0.22472445,4672.8,4672.7,2.42599968]
[1759765124611,2.81626896,4672.8,4672.7,2.42599968]
[1759765124780,4.04626896,4672.8,4672.7,2.42699968]
[1759765124983,1.90622445,4672.8,4672.7,2.42699968]
[1759765125183,1.6815,4672.8,4672.7,2.42699968]
[1759765125702,3.82154451,4672.8,4672.7,2.42699968]
[1759765126131,2.9115,4672.8,4672.7,2.42699968]
[1759765127254,5.05074451,4672.8,4672.7,2.42699968]
[1759765127411,4.1407,4672.8,4672.7,2.42699968]
[1759765128828,5.3707,4672.8,4672.7,2.42699968]
[1759765129908,8.48652498,4672.8,4672.7,0.00099968]
[1759765130155,8.74074451,4672.8,4672.7,0.00099968]
[1759765131446,9.97074451,4672.8,4672.7,0.00099968]
[1759765132823,11.20074451,4672.8,4672.7,0.00099968]
[1759765133216,8.61,4672.8,4672.7,0.00099968]
[1759765134195,9.84,4672.8,4672.7,0.00099968]
[1759765134542,10.2915,4672.8,4672.7,0.00099968]
[1759765134737,9.84,4672.8,4672.7,0.00099968]
[1759765134939,10.2915,4672.8,4672.7,2.42699968]
[1759765135140,12.43154451,4672.8,4672.7,0.00099968]
[1759765135362,13.89941042,4672.8,4672.7,0.00099968]
[1759765135574,15.12941042,4672.8,4672.7,0.00099968]
[1759765136562,11.07,4672.8,4672.7,0.00099968]
[1759765136770,13.66154451,4672.8,4672.7,0.00099968]
[1759765136967,14.89154451,4672.8,4672.7,0.00099968]
[1759765138349,16.12154451,4672.8,4672.7,0.00099968]
[1759765139654,17.35154451,4672.8,4672.7,0.00099968]
[1759765139853,19.48836513,4672.8,4672.7,0.00099968]
[1759765140789,21.91436513,4672.8,4672.7,0.00099968]
[1759765140992,23.14436513,4672.8,4672.7,0.00099968]
[1759765141694,23.77796513,4672.8,4672.7,0.00099968]
[1759765142298,25.00796513,4672.8,4672.7,0.00099968]
[1759765143574,26.23796513,4672.8,4672.7,0.00099968]
[1759765143972,2.46,4675.1,4672.8,0.40834528]
[1759765144187,17.9879849,4674.7,4674.4,1.3791023]
[1759765144387,17.9879849,4674.7,4673.0,2.4]
[1759765144388,17.9879849,4674.7,4674.5,5.70315196]
[1759765144569,17.9879849,4674.7,4674.6,8.182957]
[1759765145063,17.9879849,4674.7,4674.6,13.58101472]
[1759765145260,17.9879849,4674.7,4674.6,15.98101472]
[1759765145463,17.9879849,4674.7,4674.6,14.91879246]
[1759765145693,17.9879849,4674.7,4674.6,4.803156]
[1759765145874,17.9879849,4674.7,4674.6,6.67808446]
[1759765146067,17.9879849,4674.7,4674.6,9.53395646]
[1759765146468,19.2179849,4674.7,4674.6,9.53395646]
[1759765147225,19.2179849,4674.7,4674.6,21.95727646]
[1759765147369,19.2179849,4674.7,4674.6,19.53127646]
[1759765147694,20.4479849,4674.7,4674.6,21.95727646]
[1759765148100,20.4479849,4674.7,4674.6,21.95923246]
[1759765148297,20.4479849,4674.7,4674.6,17.70620546]
[1759765148600,20.4479849,4674.7,4674.6,15.28020546]
[1759765148790,20.4479849,4674.7,4674.6,17.70620546]
[1759765148962,20.4479849,4674.7,4674.6,21.17218846]
[1759765149168,21.6779849,4674.7,4674.6,13.46686446]
[1759765149362,21.6779849,4674.7,4674.6,10.73665864]
[1759765149597,21.6779849,4674.7,4674.6,13.16265864]
[1759765149966,21.6779849,4674.7,4674.6,23.77529064]
[1759765150170,21.6779849,4674.7,4674.6,23.34792464]
[1759765150598,22.9079849,4674.7,4674.6,23.34792464]
[1759765151100,22.9079849,4674.7,4674.6,25.59653364]
[1759765151302,22.9079849,4674.7,4674.6,20.30065564]
[1759765151499,22.9079849,4674.7,4674.6,22.72665564]
[1759765151699,22.9071849,4674.7,4674.6,17.02657664]
[1759765151905,24.1371849,4674.7,4674.6,17.02657664]
[1759765152105,24.1371849,4674.7,4674.6,19.69657664]
[1759765153098,24.1371849,4674.7,4674.6,21.48116964]
[1759765153293,25.3671849,4674.7,4674.6,23.90716964]
[1759765153978,25.3671849,4674.7,4674.6,24.01436964]
[1759765154191,25.3671849,4674.7,4674.6,27.47404664]
[1759765154579,25.3671849,4674.7,4674.6,23.95653064]
[1759765154772,26.5971849,4674.7,4674.6,23.95653064]
[1759765154992,26.5971849,4674.7,4674.6,21.53053064]
[1759765155209,26.5971849,4674.7,4674.6,22.14150664]
[1759765155393,26.5971849,4674.7,4674.6,17.67188664]
[1759765156122,27.8271849,4674.7,4674.6,25.22220964]
[1759765156528,27.8271849,4674.7,4674.6,17.01751064]
[1759765156736,27.8271849,4674.7,4674.6,10.28287846]
[1759765156933,28.2758849,4674.7,4674.6,2.4]
[1759765157138,28.2758849,4674.7,4674.6,4.825]
[1759765157340,29.5058849,4674.7,4674.6,7.09811746]
[1759765157936,29.5058849,4674.7,4674.6,7.383897]
[1759765158118,29.5058849,4674.7,4674.6,4.958897]
[1759765158298,29.5058849,4674.7,4674.6,9.52311746]
[1759765158504,29.5058849,4674.7,4674.6,7.383897]
[1759765158702,29.0571849,4674.7,4674.6,21.68081946]
[1759765158900,30.2871849,4674.7,4674.6,21.19693755]
[1759765159611,30.2871849,4674.7,4674.6,21.27254155]
[1759765159809,30.2871849,4674.7,4674.6,20.14998946]
[1759765160008,30.2871849,4674.7,4674.6,16.96766946]
[1759765160308,31.5171849,4674.7,4674.6,15.30845246]
[1759765160835,31.5171849,4674.7,4674.6,18.44418846]
[1759765161542,31.5171849,4674.7,4674.6,7.758702]
[1759765161721,33.1958849,4674.7,4674.6,11.126097]
[1759765162215,33.1958849,4674.7,4674.6,12.95048346]
[1759765162412,32.7471849,4674.7,4674.6,12.95048346]
[1759765162622,32.7471849,4674.7,4674.6,26.18187146]
[1759765162811,32.7471849,4674.7,4674.6,17.02932046]
[1759765163026,33.9771849,4674.7,4674.6,17.02932046]
[1759765163751,33.9771849,4674.7,4674.6,14.36417346]
[1759765164563,35.2071849,4674.7,4674.6,2.4]
[1759765164859,36.75845741,4674.7,4674.6,6.96422046]
[1759765165044,35.6558849,4674.7,4674.6,2.4]
[1759765165245,35.6558849,4674.7,4674.6,7.13445]
[1759765165428,35.6558849,4674.7,4674.6,6.84867046]
[1759765165630,35.6558849,4674.7,4674.6,15.22359446]
[1759765165957,35.6558849,4674.7,4674.6,14.16649446]
[1759765166158,36.8858849,4674.7,4674.6,14.16649446]
[1759765166555,36.4371849,4674.7,4674.6,14.16649446]
[1759765166757,36.4371849,4674.7,4674.6,6.96522046]
[1759765166932,36.4371849,4674.7,4674.6,33.90302846]
[1759765167127,36.4371849,4674.7,4674.6,19.98385446]
[1759765167349,37.6671849,4674.7,4674.6,19.55465246]
[1759765167732,37.6671849,4674.7,4674.6,22.93339446]
[1759765168648,37.6671849,4674.7,4674.6,18.79285646]
[1759765168962,38.8971849,4674.7,4674.6,18.79285646]
[1759765169773,38.8971849,4674.7,4674.6,8.12342246]
[1759765170055,39.3458849,4674.7,4674.6,9.49868746]
[1759765170259,40.5758849,4674.7,4674.6,9.49868746]
[1759765170456,40.1271849,4674.7,4674.6,9.49868746]
[1759765170658,40.1271849,4674.7,4674.6,24.69387846]
[1759765170862,40.1271849,4674.7,4674.6,27.86853146]
[1759765171770,41.3571849,4674.7,4674.6,30.69450546]
[1759765172071,41.3571849,4674.7,4674.6,30.40495646]
[1759765172292,41.3571849,4674.7,4674.6,24.26282046]
[1759765172653,41.3571849,4674.7,4674.6,6.96522046]
[1759765173172,42.5871849,4674.7,4674.6,31.47059146]
[1759765173392,42.5871849,4674.7,4674.6,30.03159046]
[1759765173748,42.5871849,4674.7,4674.6,36.96522046]
[1759765174154,42.23988164,4674.7,4674.6,36.96522046]
[1759765174471,42.23988164,4674.7,4674.6,37.88163255]
[1759765174671,43.46988164,4674.7,4674.6,37.88163255]
[1759765175194,27.59921787,4674.7,4674.6,37.88163255]
[1759765175484,27.59921787,4674.7,4674.6,37.88063255]
[1759765175691,27.59921787,4674.7,4674.6,25.26690546]
[1759765175842,28.82921787,4674.7,4674.6,29.66469946]
[1759765176048,28.82921787,4674.7,4674.6,29.03109946]
[1759765176252,28.82841787,4674.7,4674.6,29.03109946]
[1759765176776,29.26091787,4674.7,4674.6,8.57736046]
[1759765177081,29.26091787,4674.7,4674.6,0.001]
[1759765177381,30.49091787,4674.7,4674.6,5.112986]
[1759765177582,30.49091787,4674.7,4674.6,7.560811]
[1759765177776,30.49091787,4674.7,4674.6,7.519728]
[1759765178174,30.49091787,4674.7,4674.6,5.095728]
[1759765178359,32.62773849,4674.7,4674.6,7.519728]
[1759765178581,30.49091787,4674.7,4674.6,7.519728]
[1759765178901,31.72091787,4674.7,4674.6,12.575368]
[1759765179266,31.28841787,4674.7,4674.6,14.71458846]
[1759765179668,31.72091787,4674.7,4674.6,14.71458846]
[1759765179877,31.72091787,4674.7,4674.6,24.01896346]
[1759765180068,32.95091787,4674.7,4674.6,24.11896346]
[1759765180370,32.95091787,4674.7,4674.6,22.90792546]
[1759765180902,32.95091787,4674.7,4674.6,25.83392846]
[1759765181064,32.51841787,4674.7,4674.6,25.83392846]
[1759765181502,33.74841787,4674.7,4674.6,25.83392846]
[1759765181873,33.74841787,4674.7,4674.6,30.15168846]
[1759765182103,33.74841787,4674.7,4674.6,13.971799]
[1759765182411,33.74841787,4674.7,4674.6,17.18596646]
[1759765182874,34.97841787,4674.7,4674.6,19.18558446]
[1759765183197,34.98041787,4674.7,4674.6,19.18558446]
[1759765183995,34.98041787,4674.7,4674.6,21.66494246]
[1759765184202,36.21041787,4674.7,4674.6,19.07658446]
[1759765184889,36.21041787,4674.7,4674.6,22.56356346]
[1759765185202,36.21041787,4674.7,4674.6,22.67076346]
[1759765185724,36.21041787,4674.7,4674.6,21.37912346]
[1759765186002,37.44041787,4674.7,4674.6,19.66670746]
[1759765186412,37.44041787,4674.7,4674.6,19.44746646]
[1759765186576,37.44041787,4674.7,4674.6,10.34779546]
[1759765186782,37.87291787,4674.7,4674.6,10.632575]
[1759765186986,37.87291787,4674.7,4674.6,10.212845]
[1759765187347,37.87291787,4674.7,4674.6,4.9322]
[1759765187482,39.10291787,4674.7,4674.6,7.995071]
[1759765187684,39.10291787,4674.7,4674.6,5.571071]
[1759765187931,39.10291787,4674.7,4674.6,8.016451]
[1759765188082,39.10291787,4674.7,4674.6,7.747225]
[1759765188283,39.10291787,4674.7,4674.6,7.049225]
[1759765188694,39.10291787,4674.7,4674.6,4.625225]
[1759765188927,40.33291787,4674.7,4674.6,4.9322]
[1759765189217,40.33291787,4674.7,4674.6,12.052437]
[1759765189416,40.33291787,4674.7,4674.6,8.160437]
[1759765189621,40.33291787,4674.7,4674.6,7.683085]
[1759765189784,40.33291787,4674.7,4674.6,2.5082]
[1759765190120,40.33291787,4674.7,4674.6,4.9322]
[1759765190326,43.69973849,4674.7,4674.6,2.401]
[1759765190620,43.80693849,4674.7,4674.6,5.96236789]
[1759765190934,45.94611319,4674.7,4674.6,4.825]
[1759765191133,45.94611319,4674.7,4674.6,2.425]
[1759765191801,47.17611319,4674.7,4674.6,0.001]
[1759765192006,47.17611319,4674.7,4674.6,2.425]
[1759765193206,48.40611319,4674.7,4674.6,2.425]
[1759765194821,49.63611319,4674.7,4674.6,2.425]
[1759765196113,50.86611319,4674.7,4674.6,2.425]
[1759765197036,46.15761787,4674.7,4674.6,2.425]
[1759765197448,47.38761787,4674.7,4674.6,2.425]
[1759765197829,47.82011787,4674.7,4674.6,2.425]
[1759765198253,49.95929257,4674.7,4674.6,2.425]
[1759765198815,47.82011787,4674.7,4674.6,0.001]
[1759765199019,49.05011787,4674.7,4674.6,2.425]
[1759765199321,53.21891319,4674.7,4674.6,0.001]
[1759765200462,54.44891319,4674.7,4674.6,0.001]
[1759765200619,54.44811319,4674.7,4674.6,2.425]
[1759765201647,54.44811319,4674.7,4674.6,0.001]
[1759765201851,55.67811319,4674.7,4674.6,2.425]
[1759765203136,56.90811319,4674.7,4674.6,2.425]
[1759765204235,56.90811319,4674.7,4674.6,0.001]
[1759765204440,56.90811319,4674.7,4674.6,2.425]
[1759765204644,55.56643849,4674.7,4674.6,2.425]
[1759765204869,53.42961787,4674.7,4674.6,2.425]
[1759765205843,54.65961787,4674.7,4674.6,2.425]
[1759765206357,54.65961787,4674.7,4674.6,4.56422046]
[1759765206555,54.65961787,4674.7,4674.6,17.93493235]
[1759765206757,54.65961787,4674.7,4674.6,16.71668635]
[1759765207056,54.65961787,4674.7,4674.6,17.46492208]
[1759765207234,55.88961787,4674.7,4674.6,11.00676562]
[1759765207430,55.88961787,4674.7,4674.6,2.425]
[1759765208445,55.88961787,4674.7,4674.6,0.001]
[1759765208682,57.11961787,4674.7,4674.6,2.425]
[1759765209545,57.11961787,4674.7,4674.6,5.00454]
[1759765209871,57.11961787,4674.7,4674.6,7.40454]
[1759765210043,58.34961787,4674.7,4674.6,10.72280086]
[1759765210249,58.34961787,4674.7,4674.6,8.5835804]
[1759765210457,58.34961787,4674.7,4674.6,16.9383384]
[1759765210850,58.34961787,4674.7,4674.6,13.0186854]
[1759765211038,58.34961787,4674.7,4674.6,11.839645]
[1759765211382,59.57961787,4674.7,4674.6,9.415645]
[1759765211583,59.57961787,4674.7,4674.6,13.538498]
[1759765211953,59.57961787,4674.7,4674.6,9.00922]
[1759765212471,59.57961787,4674.7,4674.6,14.522434]
[1759765212673,59.57961787,4674.7,4674.6,11.749674]
[1759765212973,59.57961787,4674.7,4674.6,8.497527]
[1759765213143,59.57961787,4674.7,4674.6,9.63283543]
[1759765213345,64.31251319,4674.7,4674.6,0.001]
[1759765213545,64.41971319,4674.7,4674.6,2.425]
[1759765214094,64.41971319,4674.7,4674.6,0.001]
[1759765214288,64.41971319,4674.7,4674.6,2.425]
[1759765218352,63.96281319,4674.7,4674.6,2.425]
[1759765218753,64.41971319,4674.7,4674.6,2.425]
[1759765219472,64.41971319,4674.7,4674.6,0.001]
[1759765219680,64.41971319,4674.7,4674.6,2.425]
[1759765222608,64.41971319,4674.7,4674.6,0.001]
[1759765222970,2.13922046,4674.6,4674.1,0.001]
[1759765223175,2.24660353,4674.2,4674.1,0.001]
[1759765223621,2.70350353,4674.2,4674.1,0.001]
[1759765225201,2.70270353,4674.2,4674.1,0.001]
[1759765227705,5.76030353,4674.2,4674.1,0.001]
[1759765232733,2.70270353,4674.2,4674.1,0.001]
[1759765232933,3.40058971,4674.2,4674.1,0.001]
[1759765233519,2.83648971,4674.2,4674.1,0.001]
[1759765234243,2.83648971,4674.2,4673.6,0.001]
[1759765234244,1.78488618,4674.2,4673.6,0.001]
[1759765234443,2.13963241,4673.7,4673.6,0.001]
[1759765234637,3.35764938,4673.7,4673.6,0.001]
[1759765235350,3.81104938,4673.7,4673.6,0.001]
[1759765236440,3.35764938,4673.7,4673.6,0.001]
[1759765238782,2.13963241,4673.7,4673.6,0.001]
[1759765239818,2.58493241,4673.7,4673.6,0.001]
[1759765240034,2.13963241,4673.7,4673.6,0.001]
[1759765240628,2.58493241,4673.7,4673.6,0.001]
[1759765240858,2.13963241,4673.7,4673.6,0.001]
[1759765241718,2.425,4674.2,4673.6,0.001]
[1759765241916,2.13963241,4673.7,4673.6,0.001]
[1759765243535,2.24683241,4673.7,4673.6,0.001]
[1759765244334,2.69213241,4673.7,4673.6,0.001]
[1759765246149,5.11713241,4673.7,4673.6,0.001]
[1759765246350,5.00993241,4673.7,4673.6,0.001]
[1759765246536,6.27258202,4673.7,4673.6,0.001]
[1759765247251,6.90618202,4673.7,4673.6,0.001]
[1759765247974,3.84758202,4673.7,4673.6,0.001]
[1759765248133,2.13963241,4673.7,4673.6,0.001]
[1759765248334,2.58493241,4673.7,4673.6,0.001]
[1759765249661,2.58413241,4673.7,4673.6,0.001]
[1759765251347,2.13883241,4673.7,4673.6,0.001]
[1759765251547,2.58413241,4673.7,4673.6,0.001]
[1759765251734,3.74759996,4673.7,4673.6,0.001]
[1759765252269,3.30229996,4673.7,4673.6,0.001]
[1759765252436,5.72729996,4673.7,4673.6,0.001]
[1759765252967,6.17259996,4673.7,4673.6,0.001]
[1759765254750,5.72729996,4673.7,4673.6,0.001]
[1759765255555,3.30229996,4673.7,4673.6,0.001]
[1759765256371,2.24603241,4673.7,4673.6,0.001]
[1759765257626,2.24603241,4673.7,4673.6,0.0033]
[1759765257922,2.24603241,4673.7,4673.6,0.001]
[1759765261795,2.24683241,4673.7,4673.6,0.001]
[1759765265083,0.1072,4673.7,4673.6,0.001]
[1759765265295,0.002,4674.1,4673.6,0.0033]
[1759765265492,0.002,4674.1,4673.6,0.001]
[1759765265820,0.002,4674.1,4673.7,6.021379]
[1759765266017,0.002,4674.1,4673.7,2.4263]
[1759765266217,2.13954245,4673.9,4673.7,2.4263]
[1759765266516,2.13950564,4674.0,4673.7,2.424]
[1759765266819,0.002,4674.1,4673.6,0.001]
[1759765267022,2.13958663,4673.8,4673.7,2.424]
[1759765267223,2.13949798,4674.0,4673.7,2.424]
[1759765267521,0.002,4674.1,4673.6,0.001]
[1759765267721,2.13954598,4673.9,4673.7,2.424]
[1759765268088,0.002,4674.1,4673.7,2.424]
[1759765268425,2.13949507,4674.0,4673.7,2.424]
[1759765268786,2.13955988,4673.9,4673.7,2.424]
[1759765269199,2.14149357,4674.1,4673.7,2.424]
[1759765269393,2.13950038,4674.0,4673.7,2.424]
[1759765269802,2.13954609,4673.9,4673.7,2.424]
[1759765270211,0.002,4674.1,4673.7,2.424]
[1759765270932,2.1395441,4673.9,4673.7,2.424]
[1759765272406,2.13950511,4674.0,4673.7,2.424]
[1759765273007,2.14145748,4674.1,4673.7,2.424]
[1759765273225,0.002,4674.1,4673.7,2.424]
[1759765273845,2.13958663,4673.8,4673.7,2.424]
[1759765274143,2.13883241,4673.7,4673.6,0.001]
[1759765274450,0.002,4674.1,4673.6,2.425]
[1759765274635,0.002,4674.1,4673.7,0.0023]
[1759765274636,2.14148298,4674.1,4673.7,0.0023]
[1759765274807,0.002,4674.1,4673.7,0.0023]
[1759765275011,2.14146914,4674.1,4673.6,2.425]
[1759765275242,0.002,4674.1,4673.7,2.424]
[1759765275541,2.13949507,4674.0,4673.7,2.424]
[1759765275711,2.13954647,4673.9,4673.7,2.424]
[1759765275913,2.13958663,4673.8,4673.7,2.424]
[1759765276249,2.14147237,4674.1,4673.6,0.001]
[1759765276423,2.36437876,4674.0,4673.7,2.424]
[1759765276617,0.22486724,4674.0,4673.7,2.424]
[1759765276943,2.13950225,4674.0,4673.7,2.424]
[1759765277146,2.60566683,4674.1,4673.7,2.424]
[1759765277447,2.13958663,4673.8,4673.7,2.424]
[1759765277921,0.4662,4674.1,4673.7,2.424]
[1759765278117,2.13958663,4673.8,4673.7,2.424]
[1759765279645,2.60378663,4673.8,4673.7,2.424]
[1759765279847,2.13963241,4673.7,4673.6,2.425]
[1759765280046,2.60383241,4673.7,4673.6,2.425]
[1759765281224,2.13963241,4673.7,4673.6,2.425]
[1759765282656,0.4642,4674.0,4673.6,2.425]
[1759765282862,2.13963241,4673.7,4673.6,2.425]
[1759765283265,2.13963241,4673.7,4673.6,0.001]
[1759765283466,3.03195084,4673.7,4673.6,0.001]
[1759765284869,3.03395084,4673.7,4673.6,0.001]
[1759765286431,3.14115084,4673.7,4673.6,0.001]
[1759765289166,2.67695084,4673.7,4673.6,0.001]
[1759765289373,2.24883241,4673.7,4673.6,0.001]
[1759765291678,0.1092,4673.7,4673.6,0.001]
[1759765292379,0.002,4673.7,4673.6,0.001]
[1759765292542,0.002,4673.7,4673.6,0.0033]
[1759765292965,0.002,4673.7,4673.6,0.001]
[1759765293976,0.002,4673.7,4673.6,26.90350965]
[1759765294178,0.002,4673.7,4673.6,17.57506146]
[1759765294348,0.002,4673.7,4673.6,13.75944146]
[1759765294551,0.002,4673.7,4673.6,13.15315746]
[1759765294746,0.002,4673.7,4673.6,11.04186446]
[1759765295083,0.002,4673.7,4673.6,0.57563146]
[1759765295280,0.002,4673.7,4673.6,2.5322]
[1759765295578,0.002,4673.7,4673.6,2.5312]
[1759765295957,2.14163241,4673.7,4673.6,0.1082]
[1759765296163,2.14163241,4673.7,4673.6,2.424]
[1759765297079,0.002,4673.7,4673.6,2.424]
[1759765297650,0.002,4673.7,4673.6,2.5335]
[1759765297855,0.002,4673.7,4673.6,3.11189298]
[1759765298058,0.002,4673.7,4673.6,6.80999298]
[1759765298253,0.002,4673.7,4673.6,19.36131498]
[1759765298559,0.0012,4673.7,4673.6,28.25933498]
[1759765298907,0.0012,4673.7,4673.6,7.50117198]
[1759765299259,0.0012,4673.7,4673.6,10.20419798]
[1759765299886,0.0012,4673.7,4673.6,9.70964098]
[1759765300052,0.0012,4673.7,4673.6,7.47478898]
[1759765300387,0.0012,4673.7,4673.6,8.83378898]
[1759765300869,0.0012,4673.7,4673.6,8.83608898]
[1759765301375,0.0012,4673.7,4673.6,15.43932998]
[1759765301683,0.0012,4673.7,4673.6,15.43702998]
[1759765301880,0.0012,4673.7,4673.6,17.48561517]
[1759765302081,0.0012,4673.7,4673.6,15.34593698]
[1759765302282,0.0012,4673.7,4673.6,28.13960817]
[1759765302490,0.0012,4673.7,4673.6,28.13730817]
[1759765302690,0.0012,4673.7,4673.6,27.85726617]
[1759765303194,0.0012,4673.7,4673.6,28.12257826]
[1759765303395,0.0012,4673.7,4673.6,39.05276466]
[1759765303592,0.0012,4673.7,4673.6,37.05465626]
[1759765303771,0.0012,4673.7,4673.6,23.40610126]
[1759765303975,0.0012,4673.7,4673.6,18.78688026]
[1759765304177,0.0012,4673.7,4673.6,18.51926817]
[1759765304377,0.0012,4673.7,4673.6,25.23382717]
[1759765304587,0.0012,4673.7,4673.6,25.23612717]
[1759765304789,0.0012,4673.7,4673.6,24.30941917]
[1759765304991,0.0012,4673.7,4673.6,24.01209517]
[1759765305368,0.0012,4673.7,4673.6,12.37650432]
[1759765305567,0.0012,4673.7,4673.6,13.38331317]
[1759765306472,0.0012,4673.7,4673.6,0.001]
[1759765306592,0.4348,4673.7,4673.6,2.424]
[1759765306789,2.57443241,4673.7,4673.6,2.424]
[1759765307492,2.57443241,4673.7,4673.6,0.001]
[1759765307800,2.57443241,4673.7,4673.6,2.424]
[1759765308006,3.04603138,4673.7,4673.6,2.424]
[1759765309712,3.04603138,4673.7,4673.6,0.001]
[1759765310115,3.04603138,4673.7,4673.6,2.424]
[1759765310491,3.04603138,4673.7,4673.6,0.001]
[1759765310697,3.04603138,4673.7,4673.6,2.424]
[1759765312588,3.04603138,4673.7,4673.6,0.001]
[1759765312789,3.04603138,4673.7,4673.6,2.424]
[1759765313017,2.61243138,4673.7,4673.6,2.424]
[1759765313203,3.04603138,4673.7,4673.6,2.424]
[1759765314365,2.61243138,4673.7,4673.6,0.001]
[1759765314544,0.0012,4673.7,4673.6,0.001]
[1759765314866,2.14083241,4673.7,4673.6,0.001]
[1759765315346,0.0012,4673.7,4673.6,0.001]
[1759765315733,0.0012,4673.7,4673.6,6.613609]
[1759765315926,0.0012,4673.7,4673.6,0.001]
[1759765316447,0.0012,4673.7,4673.6,6.775806]
[1759765316626,0.0012,4673.7,4673.6,7.461535]
[1759765317771,2.14083241,4673.7,4673.6,2.424]
[1759765319041,2.57443241,4673.7,4673.6,2.424]
[1759765320624,2.68163241,4673.7,4673.6,2.424]
[1759765323165,2.68083241,4673.7,4673.6,2.424]
[1759765324035,3.16307227,4673.7,4673.6,0.001]
[1759765324536,3.18177227,4673.7,4673.6,0.001]
[1759765325269,2.69953241,4673.7,4673.6,0.001]
[1759765326755,2.24723241,4673.7,4673.6,0.001]
[1759765327361,2.69953241,4673.7,4673.6,0.001]
[1759765328253,2.24723241,4673.7,4673.6,0.001]
[1759765330246,0.1076,4673.7,4673.6,0.001]
[1759765330553,2.24723241,4673.7,4673.6,0.001]
[1759765331339,2.24723241,4673.7,4673.6,2.424]
[1759765331539,2.69953241,4673.7,4673.6,2.424]
[1759765335779,2.24723241,4673.7,4673.6,2.424]
[1759765337103,2.69953241,4673.7,4673.6,2.424]
[1759765340485,2.24723241,4673.7,4673.6,2.424]
[1759765341392,0.0004,4673.7,4673.6,11.433528]
[1759765341572,2.14003241,4673.7,4673.6,2.424]
[1759765342005,2.59233241,4673.7,4673.6,0.001]
[1759765342300,3.07644042,4673.7,4673.6,2.424]
[1759765342506,2.14003241,4673.7,4673.6,2.424]
[1759765344210,2.14003241,4673.7,4672.8,0.0023]
[1759765344211,2.13967819,4673.6,4672.0,1.44826816]
[1759765344429,2.4,4671.9,4670.5,1.89730607]
[1759765344574,2.7743317,4671.3,4670.0,1.89730607]
[1759765344916,2.7743317,4671.3,4668.9,3.79035553]
[1759765344917,0.6336,4670.3,4669.4,1.89730607]
[1759765345211,5.19783592,4670.2,4669.4,1.89730607]
[1759765345380,5.65013592,4670.2,4670.1,1e-08]
[1759765346321,5.65013592,4670.2,4668.0,0.1072584]
[1759765346322,2.8846,4670.1,4668.0,0.1072584]
[1759765346629,2.14215329,4668.2,4668.0,0.10725839]
[1759765346788,2.14215329,4668.2,4667.2,2.423]
[1759765346994,2.59445329,4668.2,4667.2,2.423]
[1759765347188,2.59445329,4668.2,4667.1,0.01]
[1759765347376,2.59445329,4668.2,4667.3,2.423]
[1759765347570,2.59365329,4668.2,4667.3,2.423]
[1759765348173,2.59365329,4668.2,4667.1,0.01]
[1759765348378,2.59365329,4668.2,4667.3,2.423]
[1759765348900,5.01665329,4668.2,4667.3,2.423]
[1759765349407,5.65025329,4668.2,4668.1,1e-08]
[1759765349608,6.36612604,4668.2,4668.1,1e-08]
[1759765349980,6.56534362,4668.2,4668.1,1e-08]
[1759765351412,6.56534362,4668.2,4667.9,1e-08]
[1759765351675,2.77584507,4668.0,4667.9,1e-08]
[1759765351826,6.48402894,4668.0,4667.9,1e-08]
[1759765352032,6.93632894,4668.0,4667.9,1e-08]
[1759765352376,2.14261227,4667.2,4667.1,0.01]
[1759765352532,0.19921758,4667.2,4667.1,0.01]
[1759765352732,2.79412985,4667.2,4667.1,0.01]
[1759765352957,2.83550056,4667.2,4667.1,0.01]
[1759765353275,2.34182985,4667.2,4667.1,0.01]
[1759765353844,3.20673966,4667.2,4667.1,0.01]
[1759765354041,5.63073966,4667.2,4667.1,0.01]
[1759765354247,6.37153966,4667.2,4667.1,1e-08]
[1759765354781,8.77153966,4667.2,4667.1,1e-08]
[1759765355069,9.94870186,4667.2,4667.1,1e-08]
[1759765355439,2.77630409,4667.0,4666.9,0.001]
[1759765355678,7.79952167,4667.0,4666.9,0.001]
[1759765355976,8.22992167,4667.0,4666.9,0.001]